[Event "*** Titled Tuesday Blitz"]
[Site "Chess.com"]
[Date "2021.04.27"]
[Round "8"]
[White "microbear"]
[Black "aljado"]
[Result "1-0"]
[WhiteElo "2179"]
[BlackElo "2034"]
[TimeControl "180+1"]
[EndTime "11:26:27 PDT"]
[Termination "microbear won on time"]

1. e4 {[%clk 0:03:00.9]} 1... c5 {[%clk 0:02:59.7]} 2. Nf3 {[%clk 0:02:59.4]}
2... e6 {[%clk 0:02:59.3]} 3. d4 {[%clk 0:02:59.1]} 3... cxd4 {[%clk 0:02:58.6]}
4. Nxd4 {[%clk 0:03:00]} 4... Bc5 {[%clk 0:02:58.2]} 5. Nb3 {[%clk 0:02:55.6]}
5... Bb6 {[%clk 0:02:57.8]} 6. Nc3 {[%clk 0:02:55.2]} 6... a6 {[%clk 0:02:57.4]}
7. a4 {[%clk 0:02:43.6]} 7... Nc6 {[%clk 0:02:56.3]} 8. g3 {[%clk 0:02:34.6]}
8... Nge7 {[%clk 0:02:54.9]} 9. Bg2 {[%clk 0:02:34.4]} 9... O-O {[%clk
0:02:55.1]} 10. O-O {[%clk 0:02:34.7]} 10... f5 {[%clk 0:02:54.9]} 11. Bf4
{[%clk 0:02:26.4]} 11... fxe4 {[%clk 0:02:46.9]} 12. Bd6 {[%clk 0:02:26.2]}
12... e3 {[%clk 0:02:38.3]} 13. a5 {[%clk 0:02:20.1]} 13... Ba7 {[%clk
0:02:29.3]} 14. fxe3 {[%clk 0:02:02.4]} 14... Bxe3+ {[%clk 0:02:26.6]} 15. Kh1
{[%clk 0:02:02.6]} 15... Rxf1+ {[%clk 0:02:26.4]} 16. Qxf1 {[%clk 0:02:02.4]}
16... Nf5 {[%clk 0:02:24.8]} 17. Bc5 {[%clk 0:01:53.4]} 17... d5 {[%clk
0:02:10.3]} 18. Re1 {[%clk 0:01:23.7]} 18... Bxc5 {[%clk 0:01:20.4]} 19. Nxc5
{[%clk 0:01:22.9]} 19... Qd6 {[%clk 0:01:17]} 20. Nd3 {[%clk 0:01:13.3]} 20...
Nxa5 {[%clk 0:01:06.1]} 21. g4 {[%clk 0:00:39.2]} 21... Nh4 {[%clk 0:00:53.9]}
22. Ne5 {[%clk 0:00:33.6]} 22... Qc7 {[%clk 0:00:22.3]} 23. Nxd5 {[%clk
0:00:27.8]} 1-0

[Event "*** Titled Tuesday Blitz"]
[Site "Chess.com"]
[Date "2021.04.27"]
[Round "8"]
[White "eltrain1971"]
[Black "annacramling"]
[Result "1-0"]
[WhiteElo "2231"]
[BlackElo "2074"]
[TimeControl "180+1"]
[EndTime "11:26:28 PDT"]
[Termination "eltrain1971 won on time"]

1. c4 {[%clk 0:03:00.9]} 1... c5 {[%clk 0:02:58.3]} 2. g3 {[%clk 0:03:00.8]}
2... Nc6 {[%clk 0:02:58.2]} 3. Bg2 {[%clk 0:03:01.2]} 3... g6 {[%clk 0:02:58.7]}
4. Nf3 {[%clk 0:03:00.6]} 4... Bg7 {[%clk 0:02:59]} 5. Nc3 {[%clk 0:03:00.8]}
5... d6 {[%clk 0:02:58.1]} 6. O-O {[%clk 0:02:52.4]} 6... e5 {[%clk 0:02:54.2]}
7. a3 {[%clk 0:02:47.4]} 7... a5 {[%clk 0:02:49.3]} 8. d3 {[%clk 0:02:46.2]}
8... Nge7 {[%clk 0:02:47.9]} 9. Rb1 {[%clk 0:02:46.5]} 9... Be6 {[%clk
0:02:45.2]} 10. Ne1 {[%clk 0:02:45]} 10... d5 {[%clk 0:02:42.7]} 11. cxd5 {[%clk
0:02:38.1]} 11... Nxd5 {[%clk 0:02:43.6]} 12. Nc2 {[%clk 0:02:38.1]} 12... O-O
{[%clk 0:02:36.9]} 13. Ne3 {[%clk 0:02:32.2]} 13... Nxc3 {[%clk 0:02:28.4]} 14.
bxc3 {[%clk 0:02:31.2]} 14... Rb8 {[%clk 0:02:27]} 15. c4 {[%clk 0:02:28.4]}
15... f5 {[%clk 0:02:11.5]} 16. Bb2 {[%clk 0:02:23]} 16... Nd4 {[%clk
0:02:02.2]} 17. Ba1 {[%clk 0:02:19.3]} 17... f4 {[%clk 0:01:51.1]} 18. Nd5
{[%clk 0:02:18.1]} 18... f3 {[%clk 0:01:34.6]} 19. exf3 {[%clk 0:02:10.6]} 19...
Bxd5 {[%clk 0:01:29.1]} 20. Bxd4 {[%clk 0:01:59]} 20... Bxf3 {[%clk 0:01:09.8]}
21. Bxf3 {[%clk 0:01:55.4]} 21... Qxd4 {[%clk 0:01:07.2]} 22. Bxb7 {[%clk
0:01:52.4]} 22... Rbd8 {[%clk 0:00:48.5]} 23. Bd5+ {[%clk 0:01:46.2]} 23... Kh8
{[%clk 0:00:48.2]} 24. Qe2 {[%clk 0:01:36.9]} 24... Qc3 {[%clk 0:00:30.1]} 25.
a4 {[%clk 0:01:22.4]} 25... Rb8 {[%clk 0:00:27.9]} 26. Rb5 {[%clk 0:01:17.5]}
26... Rxb5 {[%clk 0:00:22.4]} 27. cxb5 {[%clk 0:01:13.1]} 27... Qa3 {[%clk
0:00:14.8]} 28. Qc2 {[%clk 0:01:09.8]} 28... Rd8 {[%clk 0:00:11.6]} 29. Be4
{[%clk 0:01:01]} 29... Rd4 {[%clk 0:00:09.2]} 30. b6 {[%clk 0:00:48.5]} 30...
Rxa4 {[%clk 0:00:08.6]} 31. b7 {[%clk 0:00:48.4]} 31... Rb4 {[%clk 0:00:08.8]}
32. Qxc5 {[%clk 0:00:47.8]} 1-0

[Event "*** Titled Tuesday Blitz"]
[Site "Chess.com"]
[Date "2021.04.27"]
[Round "8"]
[White "Alex-11211"]
[Black "chess94cu"]
[Result "0-1"]
[WhiteElo "2452"]
[BlackElo "2582"]
[TimeControl "180+1"]
[EndTime "11:26:29 PDT"]
[Termination "chess94cu won on time"]

1. e4 {[%clk 0:03:00.9]} 1... d5 {[%clk 0:02:59.1]} 2. exd5 {[%clk 0:03:00.4]}
2... Nf6 {[%clk 0:02:59.7]} 3. Nf3 {[%clk 0:02:59.2]} 3... Nxd5 {[%clk
0:02:58.4]} 4. d4 {[%clk 0:02:59.1]} 4... Bf5 {[%clk 0:02:57.8]} 5. c4 {[%clk
0:02:58.4]} 5... Nb4 {[%clk 0:02:40.8]} 6. Na3 {[%clk 0:02:48]} 6... e6 {[%clk
0:02:39.5]} 7. Be2 {[%clk 0:02:39.4]} 7... Be7 {[%clk 0:02:38.5]} 8. O-O {[%clk
0:02:39.3]} 8... O-O {[%clk 0:02:37.1]} 9. Be3 {[%clk 0:02:33.7]} 9... Nd7
{[%clk 0:02:29.1]} 10. Ne5 {[%clk 0:02:08]} 10... Nxe5 {[%clk 0:02:11.6]} 11.
dxe5 {[%clk 0:02:08.9]} 11... c6 {[%clk 0:02:12.1]} 12. Qb3 {[%clk 0:01:30.2]}
12... a5 {[%clk 0:02:09.8]} 13. Rfd1 {[%clk 0:00:59.6]} 13... Qc7 {[%clk
0:02:07.7]} 14. Bf4 {[%clk 0:01:00]} 14... h6 {[%clk 0:02:00.1]} 15. Qg3 {[%clk
0:00:45.2]} 15... Kh8 {[%clk 0:01:48.3]} 16. h4 {[%clk 0:00:45.2]} 16... Rad8
{[%clk 0:01:40.1]} 17. h5 {[%clk 0:00:43.2]} 17... Rxd1+ {[%clk 0:01:36.8]} 18.
Rxd1 {[%clk 0:00:42.3]} 18... Rd8 {[%clk 0:01:37.3]} 19. Ra1 {[%clk 0:00:26.8]}
19... Rd7 {[%clk 0:01:29.4]} 20. Qe3 {[%clk 0:00:26.8]} 20... Qd8 {[%clk
0:01:15.8]} 21. g4 {[%clk 0:00:18.8]} 21... Bh7 {[%clk 0:01:13.5]} 22. Kh2
{[%clk 0:00:19.3]} 22... Bg5 {[%clk 0:00:59.1]} 23. Kg2 {[%clk 0:00:08.6]} 23...
Bxf4 {[%clk 0:00:48.9]} 24. Qxf4 {[%clk 0:00:09.5]} 24... Qg5 {[%clk 0:00:49.1]}
25. Qxg5 {[%clk 0:00:05.2]} 25... hxg5 {[%clk 0:00:50]} 26. Rd1 {[%clk
0:00:03.3]} 26... Rxd1 {[%clk 0:00:49.5]} 27. Bxd1 {[%clk 0:00:04.2]} 27... Nd3
{[%clk 0:00:44.4]} 28. b3 {[%clk 0:00:01.9]} 28... Nxe5 {[%clk 0:00:44]} 0-1

[Event "*** Titled Tuesday Blitz"]
[Site "Chess.com"]
[Date "2021.04.27"]
[Round "8"]
[White "JoseRemolar"]
[Black "MuhittinBuker"]
[Result "1/2-1/2"]
[WhiteElo "2446"]
[BlackElo "2222"]
[TimeControl "180+1"]
[EndTime "11:26:30 PDT"]
[Termination "Game drawn by repetition"]

1. d4 {[%clk 0:03:00.9]} 1... Nf6 {[%clk 0:02:59]} 2. c4 {[%clk 0:03:00.2]} 2...
e6 {[%clk 0:02:59.3]} 3. Nf3 {[%clk 0:02:59.4]} 3... b6 {[%clk 0:02:58.8]} 4. g3
{[%clk 0:02:58.5]} 4... Ba6 {[%clk 0:02:58.8]} 5. Nbd2 {[%clk 0:02:56.2]} 5...
Be7 {[%clk 0:02:58.3]} 6. Bg2 {[%clk 0:02:56]} 6... c6 {[%clk 0:02:58.6]} 7. O-O
{[%clk 0:02:55.8]} 7... O-O {[%clk 0:02:58.6]} 8. Qc2 {[%clk 0:02:48.8]} 8... d5
{[%clk 0:02:58.3]} 9. b3 {[%clk 0:02:47.9]} 9... Nbd7 {[%clk 0:02:58.3]} 10. Bb2
{[%clk 0:02:44.6]} 10... Rc8 {[%clk 0:02:57.2]} 11. e4 {[%clk 0:02:40]} 11...
dxe4 {[%clk 0:02:52.2]} 12. Nxe4 {[%clk 0:02:39.2]} 12... c5 {[%clk 0:02:50.7]}
13. Rad1 {[%clk 0:02:35.9]} 13... Qc7 {[%clk 0:02:48.8]} 14. Rfe1 {[%clk
0:02:31.3]} 14... cxd4 {[%clk 0:02:44.5]} 15. Nxd4 {[%clk 0:02:27]} 15... Bb7
{[%clk 0:02:44.4]} 16. Nb5 {[%clk 0:02:04.3]} 16... Qb8 {[%clk 0:02:42.1]} 17.
Nxf6+ {[%clk 0:01:58]} 17... Nxf6 {[%clk 0:02:40.2]} 18. Be5 {[%clk 0:01:52.4]}
18... Qa8 {[%clk 0:02:34.2]} 19. Bxb7 {[%clk 0:01:32.1]} 19... Qxb7 {[%clk
0:02:33.6]} 20. Bxf6 {[%clk 0:01:04.2]} 20... gxf6 {[%clk 0:02:28.2]} 21. Rd4
{[%clk 0:00:58]} 21... f5 {[%clk 0:02:21.1]} 22. Red1 {[%clk 0:00:53.7]} 22...
Rfd8 {[%clk 0:02:13.6]} 23. Nd6 {[%clk 0:00:38]} 23... Bxd6 {[%clk 0:02:12.7]}
24. Rxd6 {[%clk 0:00:38.9]} 24... Rxd6 {[%clk 0:02:06.4]} 25. Rxd6 {[%clk
0:00:39.8]} 25... Qf3 {[%clk 0:02:03.4]} 26. Qd3 {[%clk 0:00:36.5]} 26... Qxd3
{[%clk 0:02:01.6]} 27. Rxd3 {[%clk 0:00:37.4]} 27... Rc7 {[%clk 0:02:01.1]} 28.
f4 {[%clk 0:00:37.5]} 28... Kf8 {[%clk 0:02:00.8]} 29. Kf2 {[%clk 0:00:37.9]}
29... Ke7 {[%clk 0:02:01.1]} 30. Kf3 {[%clk 0:00:34.4]} 30... f6 {[%clk
0:02:01.5]} 31. Re3 {[%clk 0:00:34.2]} 31... Rd7 {[%clk 0:01:59.3]} 32. h3
{[%clk 0:00:34.5]} 32... h5 {[%clk 0:01:57.2]} 33. g4 {[%clk 0:00:30]} 33...
hxg4+ {[%clk 0:01:56.7]} 34. hxg4 {[%clk 0:00:30.9]} 34... fxg4+ {[%clk
0:01:56.9]} 35. Kxg4 {[%clk 0:00:31.8]} 35... Rd2 {[%clk 0:01:56.8]} 36. a4
{[%clk 0:00:31.6]} 36... Rg2+ {[%clk 0:01:55.3]} 37. Kf3 {[%clk 0:00:31.7]}
37... Rg1 {[%clk 0:01:55]} 38. Kf2 {[%clk 0:00:31.4]} 38... Rb1 {[%clk
0:01:51.8]} 39. Rh3 {[%clk 0:00:27.3]} 39... Kd6 {[%clk 0:01:49.9]} 40. Ke2
{[%clk 0:00:27.8]} 40... e5 {[%clk 0:01:47.3]} 41. fxe5+ {[%clk 0:00:27.1]}
41... Kxe5 {[%clk 0:01:47.4]} 42. Kd2 {[%clk 0:00:27.6]} 42... f5 {[%clk
0:01:42.1]} 43. Kc2 {[%clk 0:00:24.7]} 43... Rg1 {[%clk 0:01:39.8]} 44. Rh7
{[%clk 0:00:23.8]} 44... a5 {[%clk 0:01:37.5]} 45. Rh6 {[%clk 0:00:22.3]} 45...
Rg2+ {[%clk 0:01:34.6]} 46. Kc3 {[%clk 0:00:22]} 46... Rg3+ {[%clk 0:01:33.4]}
47. Kc2 {[%clk 0:00:22.3]} 47... Rg2+ {[%clk 0:01:22.3]} 48. Kd3 {[%clk
0:00:21.2]} 48... Rg3+ {[%clk 0:01:17.8]} 49. Kc2 {[%clk 0:00:21.4]} 49... Rg2+
{[%clk 0:01:14.2]} 1/2-1/2

[Event "*** Titled Tuesday Blitz"]
[Site "Chess.com"]
[Date "2021.04.27"]
[Round "8"]
[White "alejogarcia1999"]
[Black "maximych26"]
[Result "1-0"]
[WhiteElo "2482"]
[BlackElo "2309"]
[TimeControl "180+1"]
[EndTime "11:26:32 PDT"]
[Termination "alejogarcia1999 won by resignation"]

1. d4 {[%clk 0:03:00.9]} 1... Nf6 {[%clk 0:02:58.8]} 2. c4 {[%clk 0:03:00.8]}
2... e6 {[%clk 0:02:58.9]} 3. Nc3 {[%clk 0:03:00.2]} 3... d5 {[%clk 0:02:55]} 4.
Nf3 {[%clk 0:02:59.9]} 4... Nbd7 {[%clk 0:02:55]} 5. Bf4 {[%clk 0:02:59.4]} 5...
Bb4 {[%clk 0:02:54.2]} 6. c5 {[%clk 0:02:50.6]} 6... b6 {[%clk 0:02:49.7]} 7.
cxb6 {[%clk 0:02:34.3]} 7... axb6 {[%clk 0:02:43.7]} 8. e3 {[%clk 0:02:34.5]}
8... c5 {[%clk 0:02:42]} 9. Bd3 {[%clk 0:02:28.8]} 9... O-O {[%clk 0:02:31.7]}
10. O-O {[%clk 0:02:27.9]} 10... Ba6 {[%clk 0:02:27.7]} 11. a3 {[%clk
0:02:24.2]} 11... Bxc3 {[%clk 0:02:26.7]} 12. bxc3 {[%clk 0:02:23.4]} 12... Bxd3
{[%clk 0:02:26.7]} 13. Qxd3 {[%clk 0:02:24.3]} 13... c4 {[%clk 0:02:23.9]} 14.
Qc2 {[%clk 0:02:22.2]} 14... Ne4 {[%clk 0:02:23.6]} 15. Rfb1 {[%clk 0:02:09.7]}
15... Ra6 {[%clk 0:02:19.1]} 16. Rb4 {[%clk 0:02:06.6]} 16... Qe7 {[%clk
0:02:17.1]} 17. a4 {[%clk 0:02:03.9]} 17... Rfa8 {[%clk 0:02:15.5]} 18. Ne5
{[%clk 0:01:58.7]} 18... Nxe5 {[%clk 0:02:09.7]} 19. Bxe5 {[%clk 0:01:57.2]}
19... h6 {[%clk 0:02:09]} 20. Rab1 {[%clk 0:01:56]} 20... Qd7 {[%clk 0:02:01.7]}
21. f3 {[%clk 0:01:52]} 21... Nf6 {[%clk 0:01:56.8]} 22. Rxb6 {[%clk 0:01:43.4]}
22... Rxb6 {[%clk 0:01:32.5]} 23. Rxb6 {[%clk 0:01:41.1]} 23... Ne8 {[%clk
0:01:22.9]} 24. Rb4 {[%clk 0:01:37.6]} 24... Nd6 {[%clk 0:01:01.6]} 25. Qb2
{[%clk 0:01:21.6]} 25... Kh7 {[%clk 0:00:36.3]} 26. Qb1+ {[%clk 0:01:16.2]}
26... g6 {[%clk 0:00:24.5]} 27. Rb8 {[%clk 0:01:13]} 27... Rxb8 {[%clk
0:00:23.9]} 28. Qxb8 {[%clk 0:01:12.4]} 28... Ne8 {[%clk 0:00:24.6]} 29. a5
{[%clk 0:01:07.8]} 29... Qa4 {[%clk 0:00:21.3]} 30. h4 {[%clk 0:01:03.6]} 30...
f6 {[%clk 0:00:19.2]} 31. Qb7+ {[%clk 0:00:57.1]} 31... Kg8 {[%clk 0:00:18.6]}
32. a6 {[%clk 0:00:52.9]} 32... fxe5 {[%clk 0:00:16.6]} 33. a7 {[%clk
0:00:52.8]} 33... Nc7 {[%clk 0:00:16.6]} 34. Qxc7 {[%clk 0:00:52.6]} 34... Qd1+
{[%clk 0:00:15.4]} 35. Kh2 {[%clk 0:00:51.9]} 1-0

[Event "*** Titled Tuesday Blitz"]
[Site "Chess.com"]
[Date "2021.04.27"]
[Round "8"]
[White "Romadk"]
[Black "CrushingKings"]
[Result "0-1"]
[WhiteElo "2322"]
[BlackElo "2511"]
[TimeControl "180+1"]
[EndTime "11:26:33 PDT"]
[Termination "CrushingKings won by checkmate"]

1. d4 {[%clk 0:02:59]} 1... Nf6 {[%clk 0:02:59.4]} 2. Nf3 {[%clk 0:02:59.2]}
2... g6 {[%clk 0:02:59.8]} 3. c4 {[%clk 0:02:59]} 3... Bg7 {[%clk 0:03:00.4]} 4.
Nc3 {[%clk 0:02:59.9]} 4... O-O {[%clk 0:03:00.5]} 5. Bg5 {[%clk 0:03:00.5]}
5... d6 {[%clk 0:03:01.4]} 6. e3 {[%clk 0:03:00.6]} 6... Nbd7 {[%clk 0:03:01.4]}
7. Be2 {[%clk 0:02:59.8]} 7... b6 {[%clk 0:03:01.7]} 8. Qc2 {[%clk 0:02:58.6]}
8... Bb7 {[%clk 0:03:02]} 9. O-O {[%clk 0:02:58.8]} 9... e5 {[%clk 0:03:02.2]}
10. Rfe1 {[%clk 0:02:56.6]} 10... h6 {[%clk 0:03:02.5]} 11. Bh4 {[%clk
0:02:56.6]} 11... g5 {[%clk 0:02:59.9]} 12. Bg3 {[%clk 0:02:56.4]} 12... Nh5
{[%clk 0:02:52.5]} 13. Bd3 {[%clk 0:02:50.8]} 13... Bxf3 {[%clk 0:02:38.8]} 14.
gxf3 {[%clk 0:02:51]} 14... exd4 {[%clk 0:02:39]} 15. exd4 {[%clk 0:02:51.2]}
15... Bxd4 {[%clk 0:02:38.2]} 16. Nd5 {[%clk 0:02:50.2]} 16... Ne5 {[%clk
0:02:29.4]} 17. Kh1 {[%clk 0:02:20.9]} 17... c6 {[%clk 0:02:24.8]} 18. Ne3
{[%clk 0:02:06.5]} 18... Nxf3 {[%clk 0:02:09.8]} 19. Ng4 {[%clk 0:01:56.5]}
19... Nxe1 {[%clk 0:01:50.4]} 20. Nxh6+ {[%clk 0:01:55.3]} 20... Kh8 {[%clk
0:01:50.1]} 21. Rxe1 {[%clk 0:01:47.5]} 21... Qf6 {[%clk 0:01:43.6]} 22. Nf5
{[%clk 0:01:47.6]} 22... Rae8 {[%clk 0:01:34.8]} 23. Rg1 {[%clk 0:01:41.5]}
23... Nxg3+ {[%clk 0:01:00.7]} 24. hxg3 {[%clk 0:01:39.1]} 24... Kg8 {[%clk
0:00:57.9]} 25. Kg2 {[%clk 0:01:37.1]} 25... Re5 {[%clk 0:00:48.3]} 26. g4
{[%clk 0:01:34]} 26... Bxb2 {[%clk 0:00:32.4]} 27. Rh1 {[%clk 0:01:30.2]} 27...
Ba3 {[%clk 0:00:19.8]} 28. Nh6+ {[%clk 0:01:29.3]} 28... Kg7 {[%clk 0:00:19.9]}
29. Nf5+ {[%clk 0:01:29.2]} 29... Rxf5 {[%clk 0:00:19.7]} 30. Bxf5 {[%clk
0:01:27.6]} 30... Re8 {[%clk 0:00:14.8]} 31. Rh7+ {[%clk 0:01:26.5]} 31... Kg8
{[%clk 0:00:14.6]} 32. Qd1 {[%clk 0:01:15.1]} 32... Bc5 {[%clk 0:00:10.7]} 33.
Qf3 {[%clk 0:01:12.2]} 33... Re5 {[%clk 0:00:04.2]} 34. Rh5 {[%clk 0:01:10]}
34... Re1 {[%clk 0:00:02.9]} 35. Qh3 {[%clk 0:01:06.5]} 35... Re2 {[%clk
0:00:02.7]} 36. Bh7+ {[%clk 0:01:03.8]} 36... Kg7 {[%clk 0:00:02.6]} 37. Bf5
{[%clk 0:01:04.7]} 37... Rxf2+ {[%clk 0:00:03]} 38. Kg3 {[%clk 0:01:03.8]} 38...
Qe5# {[%clk 0:00:02.9]} 0-1

[Event "*** Titled Tuesday Blitz"]
[Site "Chess.com"]
[Date "2021.04.27"]
[Round "8"]
[White "chessprincesa1"]
[Black "Willhaven3"]
[Result "1-0"]
[WhiteElo "2336"]
[BlackElo "2480"]
[TimeControl "180+1"]
[EndTime "11:26:34 PDT"]
[Termination "chessprincesa1 won by resignation"]

1. d4 {[%clk 0:03:00.9]} 1... Nf6 {[%clk 0:02:59.3]} 2. c4 {[%clk 0:02:58.2]}
2... e6 {[%clk 0:02:58.8]} 3. Nc3 {[%clk 0:02:48.1]} 3... Bb4 {[%clk 0:02:59.1]}
4. a3 {[%clk 0:02:43.6]} 4... Bxc3+ {[%clk 0:02:57.9]} 5. bxc3 {[%clk
0:02:42.5]} 5... b6 {[%clk 0:02:58.8]} 6. f3 {[%clk 0:02:39]} 6... Ba6 {[%clk
0:02:55.4]} 7. e4 {[%clk 0:02:39.9]} 7... c5 {[%clk 0:02:55.5]} 8. e5 {[%clk
0:02:39.2]} 8... Ng8 {[%clk 0:02:54.9]} 9. Bd3 {[%clk 0:02:39.5]} 9... Nc6
{[%clk 0:02:53.1]} 10. Ne2 {[%clk 0:02:34.6]} 10... Na5 {[%clk 0:02:51.4]} 11.
f4 {[%clk 0:02:34.1]} 11... Nxc4 {[%clk 0:02:46.2]} 12. Qa4 {[%clk 0:02:25.8]}
12... Bb7 {[%clk 0:02:21.5]} 13. Qxc4 {[%clk 0:02:21.6]} 13... Bxg2 {[%clk
0:02:17.9]} 14. Rg1 {[%clk 0:02:21.7]} 14... Qh4+ {[%clk 0:02:17.3]} 15. Kd2
{[%clk 0:02:19.6]} 15... Qxh2 {[%clk 0:02:14.4]} 16. dxc5 {[%clk 0:02:16.5]}
16... Rc8 {[%clk 0:01:58.3]} 17. Qd4 {[%clk 0:02:08.5]} 17... Bf3 {[%clk
0:01:36.1]} 18. cxb6 {[%clk 0:01:54.5]} 18... axb6 {[%clk 0:01:35.6]} 19. Bb2
{[%clk 0:01:45.2]} 19... Ne7 {[%clk 0:01:31.9]} 20. Qe3 {[%clk 0:01:37.4]} 20...
Bc6 {[%clk 0:01:14.6]} 21. a4 {[%clk 0:01:07.2]} 21... Nf5 {[%clk 0:01:03.3]}
22. Bxf5 {[%clk 0:01:04.2]} 22... exf5 {[%clk 0:01:04.2]} 23. Qg3 {[%clk
0:01:01.5]} 23... Qxg3 {[%clk 0:00:46.1]} 24. Rxg3 {[%clk 0:00:59.5]} 24... g6
{[%clk 0:00:46.1]} 25. Nd4 {[%clk 0:00:58.2]} 25... Bd5 {[%clk 0:00:45.4]} 26.
Ba3 {[%clk 0:00:56.9]} 26... h5 {[%clk 0:00:43.9]} 27. Bd6 {[%clk 0:00:51.8]}
27... h4 {[%clk 0:00:43.3]} 28. Rh3 {[%clk 0:00:49.9]} 28... Bg2 {[%clk
0:00:42.1]} 29. Rh2 {[%clk 0:00:50.4]} 29... h3 {[%clk 0:00:42]} 30. Rb1 {[%clk
0:00:47.2]} 30... Rh4 {[%clk 0:00:40]} 31. Ne2 {[%clk 0:00:33.9]} 31... Rc6
{[%clk 0:00:39.2]} 32. a5 {[%clk 0:00:31.6]} 1-0

[Event "*** Titled Tuesday Blitz"]
[Site "Chess.com"]
[Date "2021.04.27"]
[Round "8"]
[White "Leo_C"]
[Black "azikom"]
[Result "0-1"]
[WhiteElo "2471"]
[BlackElo "2652"]
[TimeControl "180+1"]
[EndTime "11:26:37 PDT"]
[Termination "azikom won by resignation"]

1. d4 {[%clk 0:03:00.9]} 1... d5 {[%clk 0:02:59.8]} 2. c4 {[%clk 0:03:00.8]}
2... e6 {[%clk 0:02:59.5]} 3. Nc3 {[%clk 0:03:00.3]} 3... a6 {[%clk 0:02:59.6]}
4. cxd5 {[%clk 0:02:58.2]} 4... exd5 {[%clk 0:02:59.5]} 5. Nf3 {[%clk
0:02:58.8]} 5... Nf6 {[%clk 0:02:56.5]} 6. Bg5 {[%clk 0:02:57.9]} 6... Be7
{[%clk 0:02:56.4]} 7. e3 {[%clk 0:02:57.7]} 7... h6 {[%clk 0:02:54.9]} 8. Bh4
{[%clk 0:02:56.9]} 8... O-O {[%clk 0:02:47]} 9. Qc2 {[%clk 0:02:54]} 9... c6
{[%clk 0:02:45]} 10. Bd3 {[%clk 0:02:53]} 10... Nbd7 {[%clk 0:02:43.6]} 11. O-O
{[%clk 0:02:52.8]} 11... Re8 {[%clk 0:02:44.1]} 12. Rab1 {[%clk 0:02:51.2]}
12... Ne4 {[%clk 0:02:36]} 13. Bxe7 {[%clk 0:02:47.3]} 13... Qxe7 {[%clk
0:02:35.4]} 14. b4 {[%clk 0:02:23.8]} 14... Nb6 {[%clk 0:02:29.8]} 15. Nd2
{[%clk 0:02:18.5]} 15... Bf5 {[%clk 0:02:19]} 16. Ndxe4 {[%clk 0:02:15.5]} 16...
dxe4 {[%clk 0:02:18]} 17. Be2 {[%clk 0:02:15.6]} 17... Qg5 {[%clk 0:02:05.1]}
18. Kh1 {[%clk 0:02:14.5]} 18... h5 {[%clk 0:01:56.9]} 19. a4 {[%clk 0:02:07.4]}
19... Rac8 {[%clk 0:01:55.8]} 20. Qd2 {[%clk 0:01:52.3]} 20... h4 {[%clk
0:01:53]} 21. h3 {[%clk 0:01:51.8]} 21... Qf6 {[%clk 0:01:44.8]} 22. b5 {[%clk
0:01:49.7]} 22... axb5 {[%clk 0:01:43.9]} 23. axb5 {[%clk 0:01:49.3]} 23... c5
{[%clk 0:01:44.5]} 24. dxc5 {[%clk 0:01:35]} 24... Rxc5 {[%clk 0:01:43.9]} 25.
Na2 {[%clk 0:01:32.4]} 25... Rd8 {[%clk 0:01:41.2]} 26. Qb2 {[%clk 0:01:30.6]}
26... Qe6 {[%clk 0:01:05.3]} 27. Kh2 {[%clk 0:01:23.1]} 27... Rcd5 {[%clk
0:01:02.2]} 28. Rfd1 {[%clk 0:01:19.8]} 28... Rxd1 {[%clk 0:01:01.2]} 29. Bxd1
{[%clk 0:01:17.5]} 29... Nc4 {[%clk 0:00:57.2]} 30. Qe2 {[%clk 0:01:06.1]} 30...
Rd2 {[%clk 0:00:53.3]} 31. Qe1 {[%clk 0:01:04.1]} 31... Rxa2 {[%clk 0:00:52.4]}
32. Bb3 {[%clk 0:01:04.1]} 32... Ra3 {[%clk 0:00:45.1]} 33. Qb4 {[%clk
0:00:59.2]} 33... Qd6+ {[%clk 0:00:44.9]} 34. Qxd6 {[%clk 0:00:57.2]} 34... Nxd6
{[%clk 0:00:45]} 35. Bd5 {[%clk 0:00:57.6]} 35... Rd3 {[%clk 0:00:42.7]} 36. Bb3
{[%clk 0:00:54.2]} 36... Be6 {[%clk 0:00:42.2]} 37. Bxe6 {[%clk 0:00:52.9]}
37... fxe6 {[%clk 0:00:42.2]} 38. Rc1 {[%clk 0:00:53.8]} 38... Nxb5 {[%clk
0:00:37.6]} 39. Rb1 {[%clk 0:00:54]} 39... Nd6 {[%clk 0:00:37.1]} 40. Rb6 {[%clk
0:00:53.5]} 40... Kf7 {[%clk 0:00:36.8]} 41. g3 {[%clk 0:00:53.8]} 41... g5
{[%clk 0:00:36]} 42. gxh4 {[%clk 0:00:53.1]} 42... gxh4 {[%clk 0:00:36.5]} 43.
Kg2 {[%clk 0:00:52.6]} 43... Kf6 {[%clk 0:00:36.3]} 44. Rb4 {[%clk 0:00:52.1]}
44... b5 {[%clk 0:00:35.4]} 0-1

[Event "*** Titled Tuesday Blitz"]
[Site "Chess.com"]
[Date "2021.04.27"]
[Round "8"]
[White "OlegKrivonosov"]
[Black "Msb2"]
[Result "0-1"]
[WhiteElo "2671"]
[BlackElo "2886"]
[TimeControl "180+1"]
[EndTime "11:26:38 PDT"]
[Termination "Msb2 won by resignation"]

1. Nf3 {[%clk 0:03:00.9]} 1... d5 {[%clk 0:02:59.1]} 2. d4 {[%clk 0:03:00.3]}
2... Nf6 {[%clk 0:02:59.1]} 3. c4 {[%clk 0:03:00.1]} 3... e6 {[%clk 0:02:59.6]}
4. g3 {[%clk 0:02:59.3]} 4... Bb4+ {[%clk 0:02:58.9]} 5. Bd2 {[%clk 0:02:58.7]}
5... a5 {[%clk 0:02:59.2]} 6. Qc2 {[%clk 0:02:57.8]} 6... O-O {[%clk 0:02:58.6]}
7. Bg2 {[%clk 0:02:57.8]} 7... c5 {[%clk 0:02:58.9]} 8. cxd5 {[%clk 0:02:55.2]}
8... cxd4 {[%clk 0:02:57.5]} 9. Nxd4 {[%clk 0:02:54.9]} 9... Qb6 {[%clk
0:02:58]} 10. e3 {[%clk 0:02:52.9]} 10... exd5 {[%clk 0:02:57.6]} 11. O-O {[%clk
0:02:52.1]} 11... Nc6 {[%clk 0:02:58.3]} 12. Nxc6 {[%clk 0:02:51.2]} 12... bxc6
{[%clk 0:02:59.2]} 13. Rc1 {[%clk 0:02:42.3]} 13... Rb8 {[%clk 0:02:54.7]} 14.
Nc3 {[%clk 0:02:37.1]} 14... h5 {[%clk 0:02:37.2]} 15. Na4 {[%clk 0:02:30.8]}
15... Qd8 {[%clk 0:02:35.6]} 16. Bxb4 {[%clk 0:02:29.3]} 16... Rxb4 {[%clk
0:02:36.5]} 17. Nc5 {[%clk 0:02:28.7]} 17... h4 {[%clk 0:02:35.7]} 18. a3 {[%clk
0:02:27.9]} 18... Rb8 {[%clk 0:02:29.6]} 19. Rab1 {[%clk 0:02:17.6]} 19... Re8
{[%clk 0:02:12.2]} 20. b4 {[%clk 0:02:15.4]} 20... axb4 {[%clk 0:02:10]} 21.
Rxb4 {[%clk 0:02:13.8]} 21... Rxb4 {[%clk 0:02:09.4]} 22. axb4 {[%clk
0:02:13.5]} 22... Ng4 {[%clk 0:02:09.5]} 23. Qc3 {[%clk 0:02:00]} 23... hxg3
{[%clk 0:02:04.7]} 24. hxg3 {[%clk 0:01:59.1]} 24... Qg5 {[%clk 0:02:05.2]} 25.
Nd3 {[%clk 0:01:39.3]} 25... Bd7 {[%clk 0:01:57.3]} 26. Nf4 {[%clk 0:01:29.6]}
26... Qh6 {[%clk 0:01:53]} 27. b5 {[%clk 0:01:23.7]} 27... Qh2+ {[%clk
0:01:31.9]} 28. Kf1 {[%clk 0:01:22.7]} 28... cxb5 {[%clk 0:01:32.2]} 29. Qd4
{[%clk 0:00:58.9]} 29... b4 {[%clk 0:01:09.1]} 30. Qxd5 {[%clk 0:00:49.8]} 30...
Nf6 {[%clk 0:00:59.4]} 31. Qa5 {[%clk 0:00:40.8]} 31... b3 {[%clk 0:00:54.5]}
32. Nd5 {[%clk 0:00:32.8]} 32... b2 {[%clk 0:00:42.2]} 33. Nxf6+ {[%clk
0:00:31.7]} 33... gxf6 {[%clk 0:00:43.1]} 34. Rb1 {[%clk 0:00:29]} 34... Rb8
{[%clk 0:00:43.7]} 35. Qa7 {[%clk 0:00:19.4]} 35... Bb5+ {[%clk 0:00:40.9]} 36.
Ke1 {[%clk 0:00:19.3]} 36... Qg1+ {[%clk 0:00:41.6]} 37. Kd2 {[%clk 0:00:19]}
37... Rd8+ {[%clk 0:00:41.9]} 0-1